fUST/lending_fUST_20250523
["ID","MTS","AMOUNT","RATE_DAILY","PERIOD"]
[362127415,1748013043037,-400.0,0.00016438,2]
[362127417,1748013043047,-430.0,0.00016438,2]
[362127420,1748013043056,-505.73193461,0.00016438,2]
[362127422,1748013043066,-430.0,0.00016438,2]
[362127424,1748013043075,-400.0,0.00016438,2]
[362127426,1748013043086,-500.0,0.00016438,2]
[362127428,1748013043095,-400.0,0.00016438,2]
[362127429,1748013043105,-400.08,0.00016438,2]
[362127430,1748013043113,-400.0,0.00016438,2]
[362127431,1748013043122,-400.0,0.00016438,2]
[362127432,1748013043131,-430.0,0.00016438,2]
[362127433,1748013043141,-500.76749215,0.00016438,2]
[362127434,1748013043150,-430.0,0.00016438,2]
[362127435,1748013043160,-430.0,0.00016438,2]
[362127436,1748013043169,-430.0,0.00016438,2]
[362127437,1748013043179,-430.0,0.00016438,2]
[362127438,1748013043188,-400.0,0.00016438,2]
[362127439,1748013043198,-503.49687042,0.00016438,2]
[362127440,1748013043208,-430.0,0.00016438,2]
[362127441,1748013043217,-400.0,0.00016438,2]
[362127442,1748013043226,-400.0,0.00016438,2]
[362127444,1748013043236,-321.45371395,0.00016438,2]
[362127446,1748013043246,-224.73162541,0.00016438,2]
[362127447,1748013043255,-400.0,0.00016438,2]
[362127448,1748013043264,-430.0,0.00016438,2]
[362127449,1748013043274,-430.0,0.00016438,2]
[362127450,1748013043284,-430.0,0.00016438,2]
[362127451,1748013043294,-430.0,0.00016438,2]
[362127452,1748013043303,-400.0,0.00016438,2]
[362127453,1748013043313,-400.0,0.00016438,2]
[362127454,1748013043322,-193.409198,0.00016438,2]
[362127456,1748013043331,-193.409198,0.00016438,2]
[362127457,1748013043341,-400.0,0.00016438,2]
[362127459,1748013043351,-430.0,0.00016438,2]
[362127461,1748013043361,-542.83,0.00016438,2]
[362127463,1748013043370,-400.0,0.00016438,2]
[362127465,1748013043379,-500.0,0.00016438,2]
[362127467,1748013043389,-430.0,0.00016438,2]
[362127469,1748013043398,-430.0,0.00016438,2]
[362127471,1748013043407,-430.0,0.00016438,2]
[362127474,1748013043417,-430.0,0.00016438,2]
[362127475,1748013043427,-400.0,0.00016438,2]
[362127478,1748013043436,-430.0,0.00016438,2]
[362127480,1748013043446,-408.09044017,0.00016438,2]
[362127482,1748013043459,-500.0,0.00016438,2]
[362127484,1748013043468,-430.0,0.00016438,2]
[362127486,1748013043478,-500.0,0.00016438,2]
[362127488,1748013043488,-430.0,0.00016438,2]
[362127490,1748013043499,-500.0,0.00016438,2]
[362127492,1748013043508,-509.56,0.00016438,2]
[362127494,1748013043518,-400.0,0.00016438,2]
[362127496,1748013043528,-430.0,0.00016438,2]
[362127497,1748013043539,-430.0,0.00016438,2]
[362127500,1748013043549,-476.19574312,0.00016438,2]
[362127502,1748013043559,-479.85,0.00016438,2]
[362127504,1748013043568,-430.0,0.00016438,2]
[362127506,1748013043578,-430.0,0.00016438,2]
[362127508,1748013043587,-430.0,0.00016438,2]
[362127510,1748013043596,-430.0,0.00016438,2]
[362127512,1748013043608,-500.0,0.00016438,2]
[362127514,1748013043617,-430.0,0.00016438,2]
[362127516,1748013043626,-430.0,0.00016438,2]
[362127518,1748013043636,-430.0,0.00016438,2]
[362127520,1748013043645,-500.0,0.00016438,2]
[362127522,1748013043654,-430.0,0.00016438,2]
[362127524,1748013043664,-351.89463732,0.00016438,2]
[362127526,1748013043673,-430.0,0.00016438,2]
[362127528,1748013043682,-430.0,0.00016438,2]
[362127530,1748013043691,-430.0,0.00016438,2]
[362127543,1748013043800,-200.83534951,0.00016438,2]
[362127545,1748013043810,-430.0,0.00016438,2]
[362127547,1748013043820,-400.0,0.00016438,2]
[362127549,1748013043830,-500.0,0.00016438,2]
[362127551,1748013043840,-430.0,0.00016438,2]
[362127553,1748013043850,-400.0,0.00016438,2]
[362127555,1748013043865,-401.94791511,0.00016438,2]
[362127557,1748013043875,-400.0,0.00016438,2]
[362127559,1748013043884,-400.0,0.00016438,2]
[362127561,1748013043894,-430.0,0.00016438,2]
[362127563,1748013043903,-430.0,0.00016438,2]
[362127565,1748013043912,-151.0,0.00016438,2]
[362127567,1748013043922,-430.0,0.00016438,2]
[362127569,1748013043931,-235.68202355,0.00016438,2]
[362127571,1748013043941,-400.0,0.00016438,2]
[362127573,1748013043951,-528.04361022,0.00016438,2]
[362127575,1748013043960,-400.0,0.00016438,2]
[362127577,1748013043970,-283.64300884,0.00016438,2]
[362127579,1748013043980,-400.0,0.00016438,2]
[362127581,1748013043989,-500.0,0.00016438,2]
[362127583,1748013043999,-400.0,0.00016438,2]
[362127585,1748013044008,-400.0,0.00016438,2]
[362127587,1748013044017,-400.0,0.00016438,2]
[362127589,1748013044027,-430.0,0.00016438,2]
[362127591,1748013044036,-400.0,0.00016438,2]
[362127593,1748013044046,-430.0,0.00016438,2]
[362127595,1748013044055,-430.0,0.00016438,2]
[362127597,1748013044064,-400.0,0.00016438,2]
[362127599,1748013044074,-151.0,0.00016438,2]
[362127602,1748013044084,-400.0,0.00016438,2]
[362127603,1748013044094,-500.0,0.00016438,2]
[362127605,1748013044105,-400.0,0.00016438,2]
[362127608,1748013044115,-302.94783816,0.00016438,2]
[362127610,1748013044125,-400.0,0.00016438,2]
[362127611,1748013044135,-400.0,0.00016438,2]
[362127614,1748013044144,-536.71112375,0.00016438,2]
[362127616,1748013044154,-402.11988035,0.00016438,2]
[362127617,1748013044163,-400.0,0.00016438,2]
[362127619,1748013044173,-430.0,0.00016438,2]
[362127622,1748013044183,-400.0,0.00016438,2]
[362127624,1748013044194,-151.0,0.00016438,2]
[362127626,1748013044204,-430.0,0.00016438,2]
[362127628,1748013044214,-430.0,0.00016438,2]
[362127630,1748013044223,-151.0,0.00016438,2]
[362127632,1748013044234,-400.0,0.00016438,2]
[362127634,1748013044243,-430.0,0.00016438,2]
[362127636,1748013044253,-430.0,0.00016438,2]
[362127638,1748013044262,-430.0,0.00016438,2]
[362127640,1748013044272,-400.0,0.00016438,2]
[362127642,1748013044283,-400.0,0.00016438,2]
[362127644,1748013044292,-487.40957127,0.00016438,2]
[362127646,1748013044302,-400.0,0.00016438,2]
[362127648,1748013044311,-151.0,0.00016438,2]
[362127650,1748013044321,-400.0,0.00016438,2]
[362127652,1748013044331,-400.0,0.00016438,2]
[362127654,1748013044341,-500.0,0.00016438,2]
[362127656,1748013044350,-400.0,0.00016438,2]
[362127658,1748013044362,-203.44410118,0.00016438,2]
[362127660,1748013044371,-400.0,0.00016438,2]
[362127662,1748013044380,-400.0,0.00016438,2]
[362127664,1748013044390,-400.0,0.00016438,2]
[362127666,1748013044399,-400.0,0.00016438,2]
[362127668,1748013044408,-400.0,0.00016438,2]
[362127670,1748013044417,-400.0,0.00016438,2]
[362127672,1748013044427,-500.0,0.00016438,2]
[362127674,1748013044436,-400.0,0.00016438,2]
[362127676,1748013044446,-400.0,0.00016438,2]
[362127678,1748013044456,-416.20730316,0.00016438,2]
[362127680,1748013044468,-430.0,0.00016438,2]
[362127682,1748013044478,-500.0,0.00016438,2]
[362127683,1748013044487,-500.0,0.00016438,2]
[362127685,1748013044497,-430.0,0.00016438,2]
[362127688,1748013044508,-500.0,0.00016438,2]
[362127690,1748013044517,-400.0,0.00016438,2]
[362127692,1748013044527,-500.0,0.00016438,2]
[362127694,1748013044538,-500.0,0.00016438,2]
[362127696,1748013044548,-335.36600046,0.00016438,2]
[362127698,1748013044558,-430.0,0.00016438,2]
[362127700,1748013044567,-400.0,0.00016438,2]
[362127702,1748013044577,-500.0,0.00016438,2]
[362127704,1748013044587,-513.6034958,0.00016438,2]
[362127706,1748013044596,-500.0,0.00016438,2]
[362127708,1748013044606,-500.0,0.00016438,2]
[362127710,1748013044616,-400.0,0.00016438,2]
[362127712,1748013044626,-503.577723,0.00016438,2]
[362127714,1748013044636,-299.44363022,0.00016438,2]
[362127716,1748013044646,-430.0,0.00016438,2]
[362127718,1748013044656,-500.0,0.00016438,2]
[362127720,1748013044666,-500.0,0.00016438,2]
[362127722,1748013044675,-430.0,0.00016438,2]
[362127724,1748013044685,-400.0,0.00016438,2]
[362127726,1748013044695,-430.0,0.00016438,2]
[362127728,1748013044705,-505.06186109,0.00016438,2]
[362127730,1748013044715,-500.0,0.00016438,2]
[362127732,1748013044724,-430.0,0.00016438,2]
[362127734,1748013044734,-500.0,0.00016438,2]
[362127736,1748013044743,-500.0,0.00016438,2]
[362127738,1748013044753,-430.0,0.00016438,2]
[362127740,1748013044762,-518.79106401,0.00016438,2]
[362127742,1748013044772,-500.0,0.00016438,2]
[362127744,1748013044782,-430.0,0.00016438,2]
[362127746,1748013044792,-503.58232279,0.00016438,2]
[362127748,1748013044801,-500.0,0.00016438,2]
[362127750,1748013044810,-430.0,0.00016438,2]
[362127752,1748013044819,-500.0,0.00016438,2]
[362127754,1748013044829,-400.0,0.00016438,2]
[362127756,1748013044839,-430.0,0.00016438,2]
[362127757,1748013044848,-500.0,0.00016438,2]
[362127758,1748013044859,-400.0,0.00016438,2]
[362127759,1748013044869,-500.0,0.00016438,2]
[362127760,1748013044879,-430.0,0.00016438,2]
[362127761,1748013044889,-430.0,0.00016438,2]
[362127762,1748013044898,-400.0,0.00016438,2]
[362127763,1748013044908,-163.62309301,0.00016438,2]
[362127764,1748013044917,-500.0,0.00016438,2]
[362127765,1748013044927,-430.0,0.00016438,2]
[362127766,1748013044936,-430.0,0.00016438,2]
[362127767,1748013044946,-500.0,0.00016438,2]
[362127768,1748013044955,-500.0,0.00016438,2]
[362127769,1748013044965,-400.0,0.00016438,2]
[362127770,1748013044974,-400.0,0.00016438,2]
[362127771,1748013044984,-400.0,0.00016438,2]
[362127772,1748013044993,-353.57375884,0.00016438,2]
[362127773,1748013045016,-76.42624116,0.00016438,2]
[362127774,1748013045030,-500.0,0.00016438,2]
[362127775,1748013045044,-25.94931024,0.00016438,2]
[362127776,1748013045060,-484.47068976,0.00016438,2]
[362127777,1748013045073,-60.19774143,0.00016438,2]
[362127778,1748013045086,-480.02093149,0.00016438,2]
[362127779,1748013045098,-430.0,0.00016438,2]
[362127780,1748013045112,-430.0,0.00016438,2]
[362127781,1748013045124,-162.68392383,0.00016438,2]
[362127792,1748013045308,-237.31607617,0.00016438,2]
[362127794,1748013045320,-400.0,0.00016438,2]
[362127797,1748013045333,-430.0,0.00016438,2]
[362127799,1748013045348,-400.0,0.00016438,2]
[362127801,1748013045362,-444.56596158,0.00016438,2]
[362127804,1748013045375,-400.0,0.00016438,2]
[362127806,1748013045387,-430.0,0.00016438,2]
[362127808,1748013045399,-400.0,0.00016438,2]
[362127810,1748013045410,-400.0,0.00016438,2]
[362127813,1748013045423,-500.0,0.00016438,2]
[362127815,1748013045435,-430.0,0.00016438,2]
[362127817,1748013045447,-430.0,0.00016438,2]
[362127819,1748013045461,-430.0,0.00016438,2]
[362127822,1748013045474,-576.7507858,0.00016438,2]
[362127824,1748013045488,-500.0,0.00016438,2]
[362127826,1748013045501,-200.1904558,0.00016438,2]
[362127829,1748013045513,-503.9,0.00016438,2]
[362127831,1748013045527,-430.0,0.00016438,2]
[362127833,1748013045540,-430.0,0.00016438,2]
[362127836,1748013045553,-430.0,0.00016438,2]
[362127837,1748013045565,-430.0,0.00016438,2]
[362127838,1748013045578,-400.0,0.00016438,2]
[362127839,1748013045590,-500.0,0.00016438,2]
[362127840,1748013045602,-500.0,0.00016438,2]
[362127842,1748013045613,-400.0,0.00016438,2]
[362127844,1748013045623,-430.0,0.00016438,2]
[362127846,1748013045634,-240.90874238,0.00016438,2]
[362127848,1748013045646,-430.0,0.00016438,2]
[362127851,1748013045659,-430.0,0.00016438,2]
[362127853,1748013045673,-400.0,0.00016438,2]
[362127856,1748013045686,-430.0,0.00016438,2]
[362127858,1748013045698,-430.0,0.00016438,2]
[362127859,1748013045708,-400.0,0.00016438,2]
[362127860,1748013045719,-1000.0,0.00016438,2]
[362127861,1748013045730,-430.0,0.00016438,2]
[362127862,1748013045741,-500.0,0.00016438,2]
[362127863,1748013045752,-430.0,0.00016438,2]
[362127864,1748013045765,-430.0,0.00016438,2]
[362127866,1748013045776,-430.0,0.00016438,2]
[362127867,1748013045787,-151.0,0.00016438,2]
[362127868,1748013045799,-2.56925154,0.00016629,2]
[362127869,1748013045921,-505.36905222,0.00016629,2]
[362127870,1748013045933,-430.0,0.00016712,2]
[362127871,1748013045945,-430.0,0.00016712,2]
[362127872,1748013045958,-151.0,0.00016712,2]
[362127873,1748013045970,-370.0,0.00016712,2]
[362127874,1748013045981,-430.0,0.00016712,2]
[362127875,1748013045992,-248.96,0.00016712,2]
[362127876,1748013046004,-186.68,0.00016712,2]
[362127877,1748013046015,-576.47,0.00016712,2]
[362127878,1748013046027,-430.0,0.00016712,2]
[362127879,1748013046039,-192.32,0.00016712,2]
[362127880,1748013046050,-244.21757437,0.00016712,2]
[362127881,1748013046062,-430.0,0.00016712,2]
[362127882,1748013046073,-396.88,0.00016712,2]
[362127883,1748013046086,-487.94206288,0.00016712,2]
[362127884,1748013046098,-430.0,0.00016712,2]
[362127885,1748013046109,-430.0,0.00016712,2]
[362127886,1748013046119,-430.0,0.00016712,2]
[362127887,1748013046129,-430.0,0.00016712,2]
[362127888,1748013046139,-430.0,0.00016712,2]
[362127889,1748013046150,-430.0,0.00016712,2]
[362127890,1748013046160,-430.0,0.00016712,2]
[362127891,1748013046169,-430.0,0.00016712,2]
[362127892,1748013046179,-382.98530746,0.00016712,2]
[362127893,1748013046189,-491.81675987,0.00016712,2]
[362127894,1748013046198,-430.0,0.00016712,2]
[362127895,1748013046208,-207.4,0.00016761,2]
[362127896,1748013046217,-430.0,0.00016986,2]
[362127897,1748013046226,-151.0,0.00016986,2]
[362127898,1748013046236,-151.0,0.00016986,2]
[362127899,1748013046245,-534.28,0.00016986,2]
[362127900,1748013046268,-430.0,0.00016986,2]
[362127901,1748013046280,-373.22366626,0.00016986,2]
[362127902,1748013046290,-400.0,0.00016986,2]
[362127919,1748013046491,-430.0,0.00016986,2]
[362127920,1748013046511,-500.0,0.00016998,2]
[362127921,1748013046521,-500.0,0.00016998,2]
[362127922,1748013046531,-430.0,0.0001726,2]
[362127923,1748013046544,-538.36,0.0001726,2]
[362127924,1748013046554,-311.46652639,0.00017534,2]
[362127925,1748013046564,-215.0738,0.0001813,2]
[362127926,1748013046574,-4222.1536083,0.00018974,2]
[362127927,1748013046583,-250.27988985,0.0001915,2]
[362127928,1748013046611,-4505.82011015,0.0001915,2]
[362127929,1748013046621,-223.0315306,0.00019499,2]
[362127930,1748013046632,-624.52179194,0.00019558,2]
[362127931,1748013046641,-1082.268228,0.00019634,2]
[362127932,1748013046651,-160.0,0.0001971,2]
[362127933,1748013046663,-422.85710789,0.0001971,2]
[362127934,1748013046672,-894.64583333,0.0001971,2]
[362127935,1748013046682,-624.52179194,0.00019757,2]
[362127936,1748013046692,-544.63,0.000198,14]
[362127937,1748013046702,-193.20113629,0.0002,2]
[362127938,1748013046712,-185.99801705,0.0002,4]
[362127939,1748013046723,-500.0,0.00020034,2]
[362127940,1748013046733,-500.0,0.00020034,2]
[362127941,1748013046742,-12647.66147447,0.00020035,2]
[362127942,1748013046752,-212.48480548,0.00020035,2]
[362127943,1748013046761,-160.0,0.00020035,2]
[362127944,1748013046771,-160.0,0.00020035,2]
[362127945,1748013046780,-151.0,0.00020035,2]
[362127947,1748013046790,-151.0,0.00020035,2]
[362127948,1748013046800,-151.0,0.00020035,2]
[362127949,1748013046810,-257.618964,0.00020035,2]
[362127950,1748013046824,-161.650244,0.00020035,2]
[362127951,1748013046834,-273.7535,0.00020187,2]
[362127952,1748013046845,-544.63,0.000203,14]
[362127953,1748013046855,-183.95042678,0.00020571,2]
[362127954,1748013046866,-544.63,0.000208,14]
[362127955,1748013046876,-231.28369723,0.00020868,2]
[362127956,1748013046886,-500.0,0.00020999,2]
[362127957,1748013046896,-500.0,0.00020999,2]
[362127958,1748013046906,-500.0,0.00020999,2]
[362127959,1748013046916,-500.0,0.00020999,2]
[362127960,1748013046926,-500.0,0.00020999,2]
[362127961,1748013046936,-500.0,0.00020999,2]
[362127962,1748013046946,-500.0,0.00020999,2]
[362127963,1748013046956,-500.0,0.00020999,2]
[362127964,1748013046966,-500.0,0.00020999,2]
[362127965,1748013046976,-500.0,0.00020999,2]
[362127966,1748013046987,-500.0,0.00020999,2]
[362127967,1748013046997,-500.0,0.00020999,2]
[362127968,1748013047006,-500.0,0.00020999,2]
[362127969,1748013047017,-500.0,0.00020999,2]
[362127970,1748013047027,-247.22,0.00020999,2]
[362127971,1748013047037,-500.0,0.00020999,2]
[362127972,1748013047047,-179.03081135,0.00020999,2]
[362127973,1748013047056,-210.790357,0.00020999,2]
[362127974,1748013047067,-193.409198,0.00020999,2]
[362127975,1748013047077,-193.409198,0.00020999,2]
[362127976,1748013047087,-500.0,0.00020999,2]
[362127977,1748013047101,-500.0,0.00020999,2]
[362127978,1748013047113,-418.35182342,0.00020999,2]
[362127979,1748013047124,-500.0,0.00020999,2]
[362127980,1748013047134,-500.0,0.00020999,2]
[362127981,1748013047145,-500.0,0.00020999,2]
[362127982,1748013047155,-629.08457217,0.00020999,2]
[362127983,1748013047166,-2506.80627362,0.00021,3]
[362127984,1748013047176,-29288.85964295,0.00021,2]
[362127985,1748013047190,-3000.0,0.00021,2]
[362127986,1748013047202,-8084.83962699,0.00021,2]
[362127987,1748013255771,10164.40205259,0.00026287,30]
[362127988,1748013688621,-180.03912739,0.00015506,2]
[362127989,1748013690274,-179.23776153,0.00015506,2]
[362127990,1748013692314,-159.3640302,0.00015506,2]
[362127991,1748013694378,-295.5929437,0.00015506,2]
[362127992,1748013696982,-210.90385956,0.00015506,2]
[362127993,1748013699871,-303.43348442,0.00015506,2]
[362127994,1748013701448,-164.67862398,0.00015506,2]
[362127996,1748013703648,-203.15041354,0.00015506,2]
[362127997,1748013705644,-200.05319341,0.00015506,2]
[362127998,1748013708793,-296.05895351,0.00015506,2]
[362127999,1748013710934,-165.8948228,0.00015506,2]
[362128000,1748013713494,-166.94641052,0.00015506,2]
[362128001,1748013715581,-193.44494208,0.00015506,2]
[362128002,1748013720031,-241.95412713,0.00015506,2]
[362128003,1748013722707,-241.33183892,0.00015505,2]
[362128004,1748013726369,-58.66816108,0.00015505,2]
[362128005,1748013726394,-215.54915997,0.00015506,2]
[362128006,1748013731530,-181.0,0.00015506,2]
[362128007,1748013734332,-208.71843324,0.00015506,2]
[362128008,1748013736581,-223.5143695,0.00015506,2]
[362128009,1748013738062,-239.19050477,0.00015506,2]
[362128010,1748013741132,-229.0914388,0.00015506,2]
[362128012,1748013744889,-168.44740582,0.00015506,2]
[362128013,1748013746445,-220.0,0.00015506,2]
[362128014,1748013849153,-312.14827741,0.0001535,2]
[362128015,1748013851716,-207.1967708,0.0001535,2]
[362128016,1748013854007,-249.37903603,0.0001535,2]
[362128017,1748013858142,-290.2095233,0.0001535,2]
[362128018,1748013860779,-298.6558789,0.0001535,2]
[362128019,1748013863901,-186.28358166,0.0001535,2]
[362128020,1748013866074,-154.538006,0.0001535,2]
[362128021,1748013868826,-170.63,0.0001535,2]
[362128022,1748013872310,-102.62641775,0.0001535,2]
[362128023,1748013872342,-147.37358225,0.00015405,2]
[362128024,1748013875418,-78.31287069,0.00015405,2]
[362128025,1748013913231,1936.54987745,0.000263,120]
[362128027,1748013923592,255.42642,0.00013699,2]
[362128029,1748013969874,-186.17965406,0.00015041,2]
[362128030,1748013969899,-28.47142717,0.00015405,2]
[362128031,1748013972450,-152.0,0.00015405,2]
[362128032,1748013974705,-45.21502577,0.00015405,2]
[362128034,1748014084453,38351.67030328,0.000263,32]
[362128051,1748014176542,7758.52951083,0.000263,120]
[362128108,1748014232787,-300.0,0.00015505,2]
[362128110,1748014232800,-300.0,0.00015505,2]
[362128112,1748014232812,-300.0,0.00015505,2]
[362128114,1748014232823,-1200.0,0.00015505,2]
[362128115,1748014232834,-15357.47865473,0.00015506,2]
[362128117,1748014232848,-161.60590693,0.00016338,2]
[362128119,1748014232859,-7881.23096349,0.00016437,2]
[362128121,1748014232869,-500.0,0.00016437,2]
[362128123,1748014232880,-500.0,0.00016437,2]
[362128124,1748014232891,-500.0,0.00016437,2]
[362128125,1748014232901,-500.79438565,0.00016437,2]
[362128126,1748014232912,-500.0,0.00016437,2]
[362128127,1748014232925,-500.0,0.00016437,2]
[362128128,1748014232937,-414.50541144,0.00016437,2]
[362128129,1748014232949,-500.0,0.00016437,2]
[362128130,1748014232961,-500.0,0.00016437,2]
[362128131,1748014232972,-500.0,0.00016437,2]
[362128132,1748014232983,-500.0,0.00016437,2]
[362128133,1748014232994,-452.45,0.00016437,2]
[362128134,1748014233005,-500.0,0.00016437,2]
[362128135,1748014233017,-577.64903111,0.00016437,2]
[362128136,1748014233028,-151.0,0.00016438,2]
[362128137,1748014233040,-286.0858518,0.00016438,2]
[362128138,1748014233051,-430.0,0.00016438,2]
[362128139,1748014233063,-160.0,0.00016438,2]
[362128140,1748014233075,-430.0,0.00016438,2]
[362128141,1748014233087,-442.22616126,0.00016438,2]
[362128142,1748014233100,-438.93474377,0.00016438,2]
[362128143,1748014233111,-500.0,0.00016438,2]
[362128144,1748014233123,-430.0,0.00016438,2]
[362128145,1748014233134,-500.0,0.00016438,2]
[362128146,1748014233145,-370.0,0.00016438,2]
[362128147,1748014233157,-400.44101049,0.00016438,2]
[362128148,1748014233168,-430.0,0.00016438,2]
[362128149,1748014233180,-430.0,0.00016438,2]
[362128150,1748014233191,-430.0,0.00016438,2]
[362128151,1748014233203,-430.0,0.00016438,2]
[362128152,1748014233215,-567.6710772,0.00016438,2]
[362128153,1748014233226,-430.0,0.00016438,2]
[362128154,1748014233238,-529.29353765,0.00016438,2]
[362128155,1748014233249,-555.85,0.00016438,2]
[362128156,1748014233262,-719.4,0.00016438,2]
[362128157,1748014233274,-430.0,0.00016438,2]
[362128158,1748014233285,-500.0,0.00016438,2]
[362128159,1748014233296,-430.0,0.00016438,2]
[362128160,1748014233309,-430.0,0.00016438,2]
[362128161,1748014233320,-248.96,0.00016438,2]
[362128162,1748014233332,-430.0,0.00016438,2]
[362128163,1748014233343,-430.0,0.00016438,2]
[362128164,1748014233355,-430.0,0.00016438,2]
[362128165,1748014233367,-382.98530746,0.00016438,2]
[362128166,1748014233380,-430.0,0.00016438,2]
[362128167,1748014233392,-485.35992712,0.00016438,2]
[362128168,1748014233404,-430.0,0.00016438,2]
[362128169,1748014233416,-714.75,0.00016438,2]
[362128170,1748014233428,-381.16,0.00016438,2]
[362128171,1748014233440,-430.0,0.00016438,2]
[362128172,1748014233452,-430.0,0.00016438,2]
[362128173,1748014233464,-430.0,0.00016438,2]
[362128174,1748014233477,-430.0,0.00016438,2]
[362128175,1748014233489,-430.0,0.00016438,2]
[362128176,1748014233501,-430.0,0.00016438,2]
[362128177,1748014233514,-248.15,0.00016438,2]
[362128178,1748014233526,-430.0,0.00016438,2]
[362128179,1748014233540,-430.0,0.00016438,2]
[362128180,1748014233778,-430.0,0.00016438,2]
[362128181,1748014233801,-430.0,0.00016438,2]
[362128182,1748014233814,-430.0,0.00016438,2]
[362128183,1748014233824,-714.68,0.00016438,2]
[362128184,1748014233836,-430.0,0.00016438,2]
[362128185,1748014233847,-430.0,0.00016438,2]
[362128186,1748014233859,-430.0,0.00016438,2]
[362128187,1748014233870,-562.57172753,0.00016438,2]
[362128188,1748014233880,-430.0,0.00016438,2]
[362128189,1748014233893,-300.51286183,0.00016438,2]
[362128190,1748014233906,-716.07,0.00016438,2]
[362128191,1748014233917,-430.0,0.00016438,2]
[362128192,1748014233928,-321.06214655,0.00016438,2]
[362128193,1748014233938,-430.0,0.00016438,2]
[362128194,1748014233949,-430.0,0.00016438,2]
[362128195,1748014233959,-430.0,0.00016438,2]
[362128196,1748014233969,-430.0,0.00016438,2]
[362128197,1748014233979,-430.0,0.00016438,2]
[362128198,1748014233989,-430.0,0.00016438,2]
[362128199,1748014233999,-943.72,0.00016438,2]
[362128200,1748014234010,-430.0,0.00016438,2]
[362128201,1748014234021,-229.26764138,0.00016438,2]
[362128202,1748014234031,-495.71,0.00016438,2]
[362128203,1748014234042,-430.0,0.00016438,2]
[362128204,1748014234053,-430.0,0.00016438,2]
[362128205,1748014234063,-400.0,0.00016438,2]
[362128206,1748014234074,-430.0,0.00016438,2]
[362128207,1748014234084,-430.0,0.00016438,2]
[362128208,1748014234094,-430.0,0.00016712,2]
[362128209,1748014234105,-430.0,0.00016712,2]
[362128210,1748014234115,-430.0,0.00016712,2]
[362128211,1748014234125,-430.0,0.00016712,2]
[362128212,1748014234136,-278.8,0.00016712,2]
[362128213,1748014234149,-430.0,0.00016712,2]
[362128214,1748014234160,-555.85,0.00016712,2]
[362128215,1748014234175,-719.4,0.00016712,2]
[362128216,1748014234185,-430.0,0.00016712,2]
[362128217,1748014234195,-500.0,0.00016712,2]
[362128218,1748014234205,-430.0,0.00016712,2]
[362128219,1748014234215,-430.0,0.00016712,2]
[362128220,1748014234225,-430.0,0.00016712,2]
[362128221,1748014234235,-559.06269682,0.00016712,2]
[362128222,1748014234245,-430.0,0.00016712,2]
[362128223,1748014234254,-430.0,0.00016712,2]
[362128224,1748014234264,-714.75,0.00016712,2]
[362128225,1748014234274,-430.0,0.00016712,2]
[362128226,1748014234285,-430.0,0.00016712,2]
[362128227,1748014234295,-430.0,0.00016712,2]